Cogmind - Beta 13 --- EXPLORER MODE // 2024.05.15 @ 20:05:06 Player: Ronin_tempest Result: Self-destructed Performance ------------- Evolutions (5) 2500 Regions Visited (13) 2600 Robots Destroyed (390) 1950 Value Destroyed (16293) 16293 Prototype IDs (52) 1040 Alien Tech Used (0) 0 Bonus (3363) 3363 TOTAL SCORE: 27746 Bonus ------- High Alert Combat Kills 173 Follower Combat Kills 1833 Network Hubs Disabled 800 Built Enhanced Grunts 300 A7 Reached Mainframe 300 Met R17 at Cetus 500 Friendly Fire -543 Cogmind --------- Core Integrity 472/1000 Matter 300/300 Energy 19/100 System Corruption 16% Temperature Cool (90) Movement Immobile (Siege) Location -5/Factory Parts ------- > --- POWER (2) -------- (None) > --- PROPULSION (4) --- Treaded Heavy-Antigrav Exoskeleton > --- UTILITY (8) ------ Armored Scrap Engine Enhanced Optical Array Advanced Terrain Scanner > --- WEAPON (4) ------- Hvy. Energy Penetrator Construct/C KE Penetrator Construct/G > --- INVENTORY (5) ---- (None) Peak State ------------ > --- POWER ------------ Antimatter-Fission Reactor > --- PROPULSION ------- Treaded Heavy-Antigrav Exoskeleton > --- UTILITY ---------- Armored Scrap Engine Enhanced Optical Array Experimental Targeting Computer Damper Plating > --- WEAPON ----------- Accelerated Phase Construct/C EM Arc Construct/G Hvy. Energy Penetrator Construct/C KE Penetrator Construct/G > --- INVENTORY -------- High-capacity Matter Pod Advanced Terrain Scanner Centrium Medium Armor Plating [Rating: 117] Favorites ----------- Power Constructs Engine Ion Engine Power Core Light Nuclear Core Reactor Constructs Propulsion Light Treads Treads Light Treads Leg Aluminum Leg Utility Armored Scrap Engine Device Armored Scrap Engine Storage Large Storage Unit Processor Enhanced Optical Array Protection Light Armor Plating Weapon Constructs Energy Gun EM Pulse Gun Energy Cannon Cooled Plasma Cannon Ballistic Gun Constructs Ballistic Cannon Constructs Launcher Grenade Launcher Build | -11 -10 -10 -8 -8 -8 -6 -6 -6 -6 -6 -5 -5 -5 ------- Run | Yrd Mat Sub Mat Sto Rec Fac Ext Cet Arc Hub Fac Was Fac Slots Evolved 11 | . 1 . 4 . . 4 . . . . 2 . . Power 1 | . . . . . . . . . . . 1 . . Propulsion 2 | . . . 1 . . 1 . . . . . . . Utility 6 | . . . 3 . . 2 . . . . 1 . . Weapon 2 | . 1 . . . . 1 . . . . . . . Parts Attached 148 | 1 7 8 35 14 1 36 2 4 6 7 15 7 5 Power 8 | . . 1 4 1 1 1 . . . . . . . Engine 5 | . . 1 1 1 1 1 . . . . . . . Core 3 | . . . 3 . . . . . . . . . . Reactor . | . . . . . . . . . . . . . . Propulsion 24 | . 2 1 12 4 . 5 . . . . . . . Treads 24 | . 2 1 12 4 . 5 . . . . . . . Leg . | . . . . . . . . . . . . . . Wheel . | . . . . . . . . . . . . . . Hover . | . . . . . . . . . . . . . . Flight . | . . . . . . . . . . . . . . Utility 67 | . 2 1 11 6 . 14 1 2 6 1 12 6 5 Device 28 | . . . 5 1 . 4 . 1 5 . 9 1 2 Storage 6 | . 1 . . . . 2 . . 1 . 1 . 1 Processor 7 | . . . 3 1 . 2 . . . . 1 . . Hackware . | . . . . . . . . . . . . . . Protection 26 | . 1 1 3 4 . 6 1 1 . 1 1 5 2 Artifact . | . . . . . . . . . . . . . . Weapon 49 | 1 3 5 8 3 . 16 1 2 . 6 3 1 . Energy Gun 9 | 1 1 1 1 . . 4 . . . . 1 . . Energy Cannon 13 | . . 3 . . . 4 . . . 3 2 1 . Ballistic Gun 20 | . 1 1 6 2 . 6 1 1 . 2 . . . Ballistic Cannon . | . . . . . . . . . . . . . . Launcher 7 | . 1 . 1 1 . 2 . 1 . 1 . . . Special Weapon . | . . . . . . . . . . . . . . Impact Weapon . | . . . . . . . . . . . . . . Slashing Weapon . | . . . . . . . . . . . . . . Piercing Weapon . | . . . . . . . . . . . . . . Special Melee Weapon . | . . . . . . . . . . . . . . Unidentified Prototypes 5 | . . . . . . 1 . 1 1 . 2 . . Parts Lost 35 | . . 3 7 1 . 4 . . . 7 2 5 6 Power 6 | . . 1 . 1 . 1 . . . 1 . . 2 Propulsion 2 | . . . . . . . . . . 1 . . 1 Utility 10 | . . 1 3 . . 1 . . . . 1 2 2 Weapon 17 | . . 1 4 . . 2 . . . 5 1 3 1 Highest Loss Streak 5 | . . 2 3 1 . 1 . . . 4 1 5 3 To Critical Strikes 3 | . . . . . . 1 . . . . . . 2 Average Slot Usage (%) 85 | . 98 99 99 99 100 81 81 80 77 80 71 46 51 Engine 5 | . 12 12 2 7 8 2 5 5 . . . . . Core 1 | . . . 4 . . 3 . . . . 2 4 . Treads 15 | . 22 25 25 24 25 13 7 10 12 8 2 5 3 Device 9 | . . . 8 16 16 13 12 11 11 12 15 6 6 Storage 7 | . 12 12 8 8 8 6 6 6 6 6 5 . 1 Processor 8 | . . . 15 8 8 10 12 12 12 12 11 11 9 Protection 7 | . 11 12 7 8 8 6 6 5 6 6 5 3 5 Energy Gun 6 | . 32 13 1 . . 3 3 . 3 6 4 11 6 Energy Cannon 7 | . . 10 5 . . 6 11 6 6 8 11 1 7 Ballistic Gun 7 | . . . 16 22 16 11 8 12 12 7 2 . 1 Launcher 3 | . 2 12 1 1 8 . . 5 . . . . . Naked Turns . | . . . . . . . . . . . . . . Heaviest Build 101 | 20 35 41 47 44 42 96 89 87 85 86 101 84 92 Greatest Support 186 | 20 40 40 64 64 64 102 85 106 106 106 123 114 186 Greatest Overweight (x) 2 | . 1 1 . . . 2 1 1 . 1 2 . . Average Overweight (x) . | . . . . . . . . . . . . . . Largest Inventory Capacity 20 | 10 15 15 15 15 15 20 20 20 20 20 20 20 5 Average Capacity 16 | 10 13 15 15 15 15 17 20 20 20 20 20 6 5 Most Carried 20 | 8 15 15 15 15 15 20 20 20 20 19 20 20 3 Average Carried 14 | 7 12 14 14 14 14 14 19 19 19 17 18 4 2 Final Capacity 20 | 10 15 15 15 15 15 20 20 20 20 20 20 5 5 Final Carried 20 | 8 15 14 15 15 15 20 19 20 19 16 20 2 . Scrap Engine Consumption 335 | . . . . . . 138 35 14 5 46 51 21 25 Constructs Created 14 | . . . . . . 7 . . 1 3 1 . 2 Constructs Modified 125 | . . . . . . 50 16 3 . 16 26 3 11 Class Distribution -------------------- 31% | Hacker-Tank 30% | Hacker-Gunner 20% | Hacker-Construct 7% | Scavenger-Tank 4% | Commander-Tank 3% | Scavenger-Gunner Dominant Class ---------------- Hacker-Tank | -10/Materials Hacker-Tank | -10/Subcaves Scavenger-Tank | -8/Materials Scavenger-Tank | -8/Storage Commander-Tank | -8/Recycling Hacker-Gunner | -6/Factory Hacker-Gunner | -6/Extension Hacker-Gunner | -6/Cetus Hacker-Construct | -6/Archives Hacker-Construct | -6/Hub_04(d) Hacker-Construct | -5/Factory Hacker-Construct | -5/Waste Hacker-Construct | -5/Factory Resources | -11 -10 -10 -8 -8 -8 -6 -6 -6 -6 -6 -5 -5 -5 ----------- Run | Yrd Mat Sub Mat Sto Rec Fac Ext Cet Arc Hub Fac Was Fac Matter Collected 7204 | 210 91 402 835 992 65 2096 341 178 104 649 451 306 484 Remotely . | . . . . . . . . . . . . . . Salvage Created 20664 | 101 533 927 1988 2170 . 5631 1522 311 145 1620 2911 1704 1101 Parts 924 | 4 34 58 105 127 . 275 60 12 6 58 99 38 48 Haulers Intercepted 24 | . 1 . 6 5 . 5 . . . 4 3 . . Recyclers Shooed 9 | . . . 1 1 . 4 1 . . . 1 . 1 Parts Field Recycled . | . . . . . . . . . . . . . . Retrieved Matter . | . . . . . . . . . . . . . . Parts Self-Destructed . | . . . . . . . . . . . . . . Prevented . | . . . . . . . . . . . . . . Kills | -11 -10 -10 -8 -8 -8 -6 -6 -6 -6 -6 -5 -5 -5 ------- Run | Yrd Mat Sub Mat Sto Rec Fac Ext Cet Arc Hub Fac Was Fac Combat Hostiles Destroyed 291 | . 13 25 26 36 . 86 19 4 1 23 39 6 13 Guns 145 | . 9 7 9 32 . 58 9 1 1 10 6 1 2 Cannons 101 | . . 6 16 . . 21 10 3 . 9 26 1 9 AOE 27 | . 4 12 . 4 . 4 . . . 3 . . . Classes Destroyed 21 | 2 5 2 1 5 . 5 . . . . . 1 . Worker 19 | . 1 . 3 2 . 7 . . . 3 3 . . Builder 10 | . . . . 2 . 4 . . . 1 1 . 2 Tunneler 2 | 1 . . . . . . . . . 1 . . . Hauler 24 | . 1 . 6 5 . 5 . . . 4 3 . . Recycler 16 | 1 . . 2 2 . 5 2 . . . 2 . 2 Mechanic 2 | . . . . 2 . . . . . . . . . Operator 7 | . . . . . . 2 2 . 2 . . . 1 Watcher 26 | . 3 . 5 2 . 7 2 1 . 1 3 . 2 Swarmer 44 | . 6 5 . 6 . 16 3 . . 2 3 . 3 Grunt 94 | . 7 1 17 14 . 30 7 1 . 4 13 . . Brawler 5 | . . . . 1 . 1 1 . . . . . 2 Duelist 3 | . . . . 1 . . 1 . . . . . 1 Protector 4 | . . . . 1 . . . . . 3 . . . Sentry 45 | . . 1 8 13 . 12 4 . 1 3 2 . 1 Specialist 4 | . . . . . . 4 . . . . . . . Hunter 16 | . . . 1 . . 7 1 . . 1 4 . 2 Programmer 35 | . . . . . . 13 . . . 1 17 . 4 Heavy 3 | . . . . . . 3 . . . . . . . Behemoth 3 | . . . . . . 1 2 . . . . . . Compactor 6 | . . . . . . . . . . . . 6 . Cetus Guard 3 | . . . . . . . . 3 . . . . . Lightning 9 | . . . . . . . . . . 9 . . . Subdweller 18 | . . 18 . . . . . . . . . . . Butcher 1 | . . . . . . . . 1 . . . . . Best Kill Streak 14 | 2 3 5 5 8 . 8 3 3 1 14 5 2 4 Combat Bots Only 10 | . 3 5 4 6 . 5 3 2 1 10 4 2 3 Max Kills in Single Turn 4 | 1 2 2 2 4 . 2 1 2 1 3 2 1 2 Gunslinging 1 | . . 1 . . . 1 . . . . . . . Exploded 3 | . 1 2 . 2 . 1 . . . 3 . . . Melee . | . . . . . . . . . . . . . . Uniques/NPCs Destroyed . | . . . . . . . . . . . . . . Combat | -11 -10 -10 -8 -8 -8 -6 -6 -6 -6 -6 -5 -5 -5 -------- Run | Yrd Mat Sub Mat Sto Rec Fac Ext Cet Arc Hub Fac Was Fac Hostile Shots Fired 1678 | . 29 53 177 121 . 638 108 . 2 200 157 49 144 Missed 482 | . 6 22 41 44 . 192 33 . 1 46 46 2 49 Damage Taken 14858 | . 157 572 1362 695 . 4244 441 45 14 3038 1679 1347 1264 Core 1286 | . 22 55 130 53 . 350 24 . . 124 141 98 289 Absorbed by Shields 118 | . . . . . . 21 83 14 . . . . . Reduced by Siege Mode 39 | . . . . . . . . . . . . . 39 Redirected to Shielding 5 | . 5 . . . . . . . . . . . . Ignored by Resistances 9129 | . 107 341 812 424 . 2620 336 36 8 1756 978 756 955 Regen/Repaired (Parts) 5933 | . 62 . 32 313 . 1786 225 14 . 755 1523 275 948 Core Remaining (%) 69 | 100 . 69 . . 66 . . . . 41 . . . Volleys Fired 819 | 2 23 80 105 85 . 201 46 11 8 75 82 60 41 Largest 4 | 2 3 3 3 3 . 4 4 4 3 4 4 4 3 Hottest 297 | 80 120 150 160 81 . 249 297 196 102 259 274 264 249 Shots Fired 2397 | 4 59 133 272 247 1 680 164 33 13 269 291 137 94 Gun 1604 | 4 57 63 182 243 1 534 83 22 6 167 96 115 31 Cannon 731 | . . 35 88 . . 141 81 7 7 92 195 22 63 Launcher 62 | . 2 35 2 4 . 5 . 4 . 10 . . . Special . | . . . . . . . . . . . . . . Kinetic 1106 | . 1 7 162 243 1 476 53 22 4 92 15 . 30 Thermal 950 | . . 35 88 . . 199 111 7 9 167 216 81 37 Explosive 62 | . 2 35 2 4 . 5 . 4 . 10 . . . Electromagnetic 279 | 4 56 56 20 . . . . . . . 60 56 27 Robot Hit Streak 65 | 3 21 46 56 39 . 54 57 40 55 65 42 57 32 Robot Miss Streak 5 | 1 1 1 3 2 1 4 1 . . 2 2 1 5 Penetration Max 3 | . . . . 1 . 1 . 1 . 3 . . 1 Secondary Targets 13 | . 3 2 . 1 . 6 . . . 1 . . . Max Gunslinging Chain 1 | . 1 1 . 1 . 1 . . . 1 . . . Shots Hit Robots 1765 | 3 44 69 203 178 . 524 113 23 13 211 199 124 61 Core Hits 799 | 2 24 40 81 96 . 242 46 22 7 117 74 19 29 Critical Kills 19 | . . . 1 . . 3 2 . 1 4 3 4 1 Critical Parts Destroyed 18 | . . . . 1 . 5 1 2 1 7 . . 1 Critical Strikes 49 | . 1 1 1 1 . 18 3 2 2 11 3 4 2 Burn 6 | . . . . . . 6 . . . . . . . Meltdown 13 | . . . 1 . . 2 1 . 1 1 3 4 . Destroy 26 | . . . . 1 . 8 2 2 1 10 . . 2 Blast 2 | . . . . . . 2 . . . . . . . Corrupt 2 | . 1 1 . . . . . . . . . . . Melee Attacks . | . . . . . . . . . . . . . . Impact . | . . . . . . . . . . . . . . Slashing . | . . . . . . . . . . . . . . Piercing . | . . . . . . . . . . . . . . Sneak Attacks . | . . . . . . . . . . . . . . Combat Hostiles . | . . . . . . . . . . . . . . Follow-up Attacks . | . . . . . . . . . . . . . . Damage Inflicted 49722 | 54 934 1716 4364 3616 17 13947 3739 1098 353 7542 7697 2396 2249 Guns 23469 | 28 642 565 2100 2717 17 9245 1213 431 125 2753 1696 1523 414 Cannons 20970 | . . 287 2180 . . 3617 2526 438 228 3050 5945 873 1826 Explosions 5230 | 26 292 864 72 895 . 1069 . 229 . 1739 44 . . Melee . | . . . . . . . . . . . . . . Ramming 53 | . . . 12 4 . 16 . . . . 12 . 9 Kinetic 16528 | . 10 139 1736 2717 17 8310 729 431 80 1333 199 . 827 Thermal 25254 | 26 242 355 2197 . . 4567 3010 438 273 4470 6685 2292 699 Explosive 4818 | . 50 796 55 895 . 1054 . 229 . 1739 . . . Electromagnetic 3069 | 28 632 426 364 . . . . . . . 801 104 714 Impact . | . . . . . . . . . . . . . . Slashing . | . . . . . . . . . . . . . . Piercing . | . . . . . . . . . . . . . . Highest Corruption 28 | . . . 1 1 4 4 4 4 4 28 9 13 16 Average Corruption 5 | . . . 1 1 1 2 4 4 3 26 3 11 13 Corruption Purged 13 | . . . . . . . . . 4 . 9 . . Corruption Blocked . | . . . . . . . . . . . . . . Effects 379 | . . . 6 17 15 105 27 14 6 53 40 28 68 Message Errors 64 | . . . 2 3 3 17 4 3 . 8 9 7 8 Matter Fused 102 | . . . 2 5 7 22 11 4 4 11 11 5 20 Heat Flow Errors 41 | . . . . 2 . 15 3 2 1 4 1 5 8 Energy Discharges 49 | . . . . 3 2 16 2 1 . 4 8 4 9 Parts Rejected 6 | . . . . . . 1 1 . . 1 1 2 . Parts Fused 6 | . . . . 1 . 2 . . . 1 . 1 1 Data Loss (minor) 41 | . . . . 2 1 14 . . 1 11 4 2 6 Data Loss (major) 18 | . . . 1 1 1 3 3 1 . 3 2 1 2 Misfires 15 | . . . 1 . 1 9 1 1 . 1 1 . . Alerts 10 | . . . . . . 4 . 1 . . 3 . 2 Misdirections 2 | . . . . . . . . . . 2 . . . Weapon Failures 25 | . . . . . . 2 2 1 . 7 . 1 12 Overload Shots 120 | . . . . . . 9 25 7 . 23 47 9 . Effects 9 | . . . . . . . 4 1 . 1 2 1 . Energy Bleed 6 | . . . . . . . 3 . . 1 1 1 . Heat Surge 2 | . . . . . . . 1 1 . . . . . Short Circuit 1 | . . . . . . . . . . . 1 . . Overflow Damage 893 | . 17 . 52 10 . 145 16 2 34 109 371 . 137 Projectiles 803 | . . . 52 . . 111 16 . 34 82 371 . 137 Explosions 90 | . 17 . . 10 . 34 . 2 . 27 . . . Melee . | . . . . . . . . . . . . . . Knockbacks 14 | . . . . . . 4 . . . . . . 10 Impact . | . . . . . . . . . . . . . . Kinetic 14 | . . . . . . 4 . . . . . . 10 Secondary . | . . . . . . . . . . . . . . Self-Inflicted Damage 535 | . 21 107 33 . . 201 . . . 167 2 . 4 Shots 24 | . 1 7 2 . . 6 . . . 8 . . . Rammed 13 | . . . 4 1 . 3 . . . . 3 . 2 Targets Rammed 15 | . . . 5 2 . 3 . . . . 3 . 2 Kicked . | . . . . . . . . . . . . . . Crushed 2 | . . . 1 1 . . . . . . . . . Highest Temperature 729 | 36 143 78 344 222 . 321 282 192 124 224 462 550 729 Average Temperature 110 | 20 59 13 106 57 . 75 98 55 74 49 147 164 180 Received Heat Transfer 3793 | . 48 84 831 630 . 1370 131 . . 111 207 . 381 Effects 49 | . . . 3 . . . 1 . . . 7 6 32 Shutdowns 9 | . . . . . . . . . . . 3 1 5 Energy Bleed 7 | . . . 1 . . . 1 . . . 1 1 3 Interference 10 | . . . 2 . . . . . . . 2 3 3 Matter Decay 1 | . . . . . . . . . . . . 1 . Short Circuit 2 | . . . . . . . . . . . 1 . 1 Damage (minor) 4 | . . . . . . . . . . . . . 4 Damage (major) 14 | . . . . . . . . . . . . . 14 Damage (core) 2 | . . . . . . . . . . . . . 2 Siege Activations 1 | . . . . . . . . . . . . . 1 Total Turns 26 | . . . . . . . . . . . . . 26 Longest Duration 26 | . . . . . . . . . . . . . 26 Robots Corrupted 4 | . 1 . . . . . . . . . 2 . 1 Combat Hostiles 2 | . . . . . . . . . . . 1 . 1 Parts Fried 16 | . 3 . 1 . . . 3 . . . 3 . 6 Impact Corruptions . | . . . . . . . . . . . . . . Robots Melted 20 | . . . 1 . . 4 1 . 1 1 7 4 1 Combat Hostiles 16 | . . . 1 . . 3 . . . 1 6 4 1 Parts Melted 90 | . 1 . 2 . . 11 8 . 3 13 39 9 4 Heat Transferred 33464 | 50 300 507 2936 . . 7758 4080 560 424 5835 7971 2447 596 Parts Sabotaged 2 | . . . . . . . . . . . . . 2 Parts Stolen . | . . . . . . . . . . . . . . Parts Stripped . | . . . . . . . . . . . . . . Power Chain Reactions 8 | 1 5 1 1 . . . . . . . . . . Alert | -11 -10 -10 -8 -8 -8 -6 -6 -6 -6 -6 -5 -5 -5 ------- Run | Yrd Mat Sub Mat Sto Rec Fac Ext Cet Arc Hub Fac Was Fac Peak Influence 579 | 10 257 . 357 415 149 518 579 300 135 466 279 2 466 Initial 493 | . 4 . . . 8 493 . 140 33 32 . . . Average 102 | 8 87 . 94 156 55 92 178 187 123 180 87 . 56 Maximum Alert Level 2 | . 1 . 1 2 . 2 2 1 . 2 1 . 2 Low Security (%) 83 | 100 95 . 85 59 100 88 62 39 100 51 91 100 93 Level 1 14 | . 4 . 14 39 . 7 25 60 . 47 8 . 4 Level 2 2 | . . . . . . 3 11 . . 1 . . 2 Level 3 . | . . . . . . . . . . . . . . Level 4 . | . . . . . . . . . . . . . . Level 5 . | . . . . . . . . . . . . . . High Security . | . . . . . . . . . . . . . . Max Security . | . . . . . . . . . . . . . . Squads Dispatched 80 | . 3 . 8 9 . 30 4 1 . 11 9 . 5 Investigation 18 | . 3 . 2 2 . 5 1 1 . 4 . . . Extermination 23 | . . . . . . 12 . . . 2 7 . 2 Reinforcement 22 | . . . 3 1 . 10 2 . . 4 2 . . Assault 5 | . . . . 2 . . 1 . . 1 . . 1 Garrison 12 | . . . 3 4 . 3 . . . . . . 2 Intercept . | . . . . . . . . . . . . . . Searches Triggered 1 | . . . . . . 1 . . . . . . . Construction Impeded 2 | . . . 1 . . . . . . 1 . . . Haulers Reinforced 5 | . . . . . . 4 . . . 1 . . . Active Scanning Responses . | . . . . . . . . . . . . . . Cargo Convoy Interrupts 1 | . . . . . . 1 . . . . . . . Stealth | -11 -10 -10 -8 -8 -8 -6 -6 -6 -6 -6 -5 -5 -5 --------- Run | Yrd Mat Sub Mat Sto Rec Fac Ext Cet Arc Hub Fac Was Fac Distress Signals 18 | . 3 . 4 2 . 2 2 2 . 1 2 . . Communications Jammed . | . . . . . . . . . . . . . . Distress Signals . | . . . . . . . . . . . . . . Times Spotted 424 | . 19 33 47 49 1 107 27 13 7 35 57 6 23 Peak Tracking Total 10 | . 3 7 5 9 1 5 5 5 1 10 4 2 5 Tactical Retreats 20 | . 2 2 4 4 . 2 2 . . . 2 . 2 Traps | -11 -10 -10 -8 -8 -8 -6 -6 -6 -6 -6 -5 -5 -5 ------- Run | Yrd Mat Sub Mat Sto Rec Fac Ext Cet Arc Hub Fac Was Fac Traps Triggered 20 | . 3 1 3 2 . 4 4 . . . 2 . 1 Indirectly . | . . . . . . . . . . . . . . Trap Hack Attempts . | . . . . . . . . . . . . . . Triggered . | . . . . . . . . . . . . . . Disarmed 6 | . . . . 6 . . . . . . . . . Reprogrammed . | . . . . . . . . . . . . . . Reused . | . . . . . . . . . . . . . . Traps Extracted . | . . . . . . . . . . . . . . Installed 2 | . . 1 1 . . . . . . . . . . Triggered 1 | . . . . . . 1 . . . . . . . Most Traps Carried 1 | . . 1 1 . . . . . . . . . . Machines | -11 -10 -10 -8 -8 -8 -6 -6 -6 -6 -6 -5 -5 -5 ---------- Run | Yrd Mat Sub Mat Sto Rec Fac Ext Cet Arc Hub Fac Was Fac Machines Disabled 47 | . 2 . 2 4 . 23 1 . 1 1 12 . 1 Max in Single Turn 4 | . 2 . 1 1 . 3 . . . 1 4 . 1 Garrison Access 5 | . . . . 1 . 1 . . . 1 1 . 1 Network Hub 4 | . . . . . . . . . . 4 . . . Machines Repaired . | . . . . . . . . . . . . . . Machines Dismantled . | . . . . . . . . . . . . . . Machines Sabotaged 3 | . . . . . . . . . . 3 . . . Overloaded Fab Kills . | . . . . . . . . . . . . . . Hacking | -11 -10 -10 -8 -8 -8 -6 -6 -6 -6 -6 -5 -5 -5 --------- Run | Yrd Mat Sub Mat Sto Rec Fac Ext Cet Arc Hub Fac Was Fac Machines Accessed 109 | . 10 . 8 16 9 32 11 2 1 6 12 . 2 Terminals 78 | . 8 . 6 12 6 18 11 2 . 6 7 . 2 Fabricators 7 | . . . . . . 5 . . . . 2 . . Repair Stations 8 | . 1 . 1 2 . 3 . . . . 1 . . Recycling Units 8 | . 1 . . 1 3 3 . . . . . . . Scanalyzers 3 | . . . 1 . . 1 . . . . 1 . . Garrison Access 4 | . . . . 1 . 2 . . . . 1 . . Total Hacks 335 | . 32 . 31 41 24 84 23 5 1 25 59 . 10 Successful 227 | . 20 . 21 30 16 55 18 5 1 16 39 . 6 Failed 108 | . 12 . 10 11 8 29 5 . . 9 20 . 4 Catastrophic 6 | . 1 . . . 1 1 1 . . 1 1 . . Database Lockouts . | . . . . . . . . . . . . . . Manual 134 | . 21 . 17 11 13 26 4 1 . 18 19 . 4 Terminals 243 | . 29 . 22 31 21 43 23 5 . 25 34 . 10 Fabricators 33 | . . . . . . 23 . . . . 10 . . Repair Stations 29 | . 2 . 3 8 . 8 . . . . 8 . . Recycling Units 9 | . 1 . . 1 3 4 . . . . . . . Scanalyzers 14 | . . . 6 . . 2 . . . . 6 . . Garrison Access 6 | . . . . 1 . 4 . . . . 1 . . Terminal Hacks 104 | . 10 . 10 16 9 17 14 5 1 7 12 . 3 Record 14 | . . . . . . 1 5 4 1 . 2 . 1 Part Schematic 10 | . 2 . . . 2 5 . . . . 1 . . Robot Analysis 10 | . 2 . 5 . 1 1 . . . 1 . . . Prototype ID Bank 17 | . 2 . . 4 3 2 1 . . 2 3 . . Open Door 14 | . . . . 5 . 2 6 1 . . . . . Open DSF 2 | . . . . . . 1 . . . . 1 . . Branch Access Points 1 | . . . . . . . . . . . 1 . . Terminal Index 1 | . . . . . . . . . . . 1 . . Repair Station Index 1 | . . . . . . . . . . . 1 . . Alert Level 4 | . . . . . . 2 . . . 1 1 . . Unreport Threat 6 | . . . 1 2 . 2 . . . 1 . . . Locate Traps 9 | . 1 . 1 1 1 . 1 . . 2 1 . 1 Disarm Traps 1 | . . . . 1 . . . . . . . . . Patrol Status 1 | . . . . 1 . . . . . . . . . Recall Investigation 1 | . 1 . . . . . . . . . . . . Hauler Manifests 4 | . 1 . 2 1 . . . . . . . . . Registered Components 1 | . . . 1 . . . . . . . . . . Registered Prototypes 3 | . 1 . . . 1 1 . . . . . . . Zone Layout 4 | . . . . 1 1 . 1 . . . . . 1 Fabricator Hacks 25 | . . . . . . 18 . . . . 7 . . Network Status 2 | . . . . . . 1 . . . . 1 . . Load Schematic 12 | . . . . . . 9 . . . . 3 . . Build 11 | . . . . . . 8 . . . . 3 . . Repair Station Hacks 22 | . 2 . 2 6 . 6 . . . . 6 . . Scan Component 11 | . 1 . 1 3 . 3 . . . . 3 . . Repair 11 | . 1 . 1 3 . 3 . . . . 3 . . Recycling Unit Hacks 4 | . . . . . . 4 . . . . . . . Report Inventory 3 | . . . . . . 3 . . . . . . . Retrieve Components 1 | . . . . . . 1 . . . . . . . Scanalyzer 9 | . . . 3 . . 1 . . . . 5 . . Insert Component 7 | . . . 3 . . 1 . . . . 3 . . Analyze 2 | . . . . . . . . . . . 2 . . Garrison Access Hacks 3 | . . . . 1 . 1 . . . . 1 . . Seal Access 3 | . . . . 1 . 1 . . . . 1 . . Unauthorized Hacks 60 | . 8 . 6 7 7 8 4 . . 9 8 . 3 Terminals 55 | . 7 . 6 6 4 8 4 . . 9 8 . 3 Track 3 | . 2 . . 1 . . . . . . . . . Botnet 39 | . 4 . 5 4 4 7 3 . . 4 6 . 2 Detonate 1 | . 1 . . . . . . . . . . . . Operators 8 | . . . 1 1 . 1 1 . . 1 2 . 1 Sabotage 4 | . . . . . . . . . . 4 . . . Fabricators . | . . . . . . . . . . . . . . Repair Stations . | . . . . . . . . . . . . . . Recycling Units 5 | . 1 . . 1 3 . . . . . . . . Tunnel 5 | . 1 . . 1 3 . . . . . . . . Scanalyzers . | . . . . . . . . . . . . . . Garrison Access . | . . . . . . . . . . . . . . Data Cores Recovered 1 | . . . . . . . . . . . . . 1 Used . | . . . . . . . . . . . . . . Hacking Detections 80 | . 8 . 8 12 6 25 6 1 . 6 7 . 1 Full Trace Events 19 | . 2 . 3 1 6 5 1 1 . . . . . Feedback Events 3 | . . . . . 3 . . . . . . . . Corruption 3 | . . . . . 3 . . . . . . . . Feedback Blocked . | . . . . . . . . . . . . . . Robot Schematics Acquired . | . . . . . . . . . . . . . . Robots Built . | . . . . . . . . . . . . . . Authchips . | . . . . . . . . . . . . . . Time . | . . . . . . . . . . . . . . Total Robot Build Rating . | . . . . . . . . . . . . . . Part Schematics Acquired 12 | . 2 . . . 2 5 . . . . 3 . . Parts Built 20 | . . . . . . 15 . . . . 5 . . Authchips . | . . . . . . . . . . . . . . Time 602 | . . . . . . 410 . . . . 192 . . Total Part Build Rating 76 | . . . . . . 51 . . . . 25 . . Parts Repaired 11 | . 1 . 1 3 . 3 . . . . 3 . . Time 479 | . 36 . 19 57 . 115 . . . . 252 . . Parts Recycled . | . . . . . . . . . . . . . . Recycled Matter . | . . . . . . . . . . . . . . Retrieved Matter . | . . . . . . . . . . . . . . Retrieved Components 10 | . . . . . . 10 . . . . . . . Parts Scanalyzed 2 | . . . . . . . . . . . 2 . . Part Schematics Acquired 2 | . . . . . . . . . . . 2 . . Parts Damaged . | . . . . . . . . . . . . . . Bothacking | -11 -10 -10 -8 -8 -8 -6 -6 -6 -6 -6 -5 -5 -5 ------------ Run | Yrd Mat Sub Mat Sto Rec Fac Ext Cet Arc Hub Fac Was Fac Used RIF Installer . | . . . . . . . . . . . . . . Robots Hacked . | . . . . . . . . . . . . . . Non-combat . | . . . . . . . . . . . . . . Combat . | . . . . . . . . . . . . . . Robot Hacks Applied . | . . . . . . . . . . . . . . Relay Couplers Released 7 | . . . . . . . . . . 1 3 . 3 Machine Destruction 4 | . . . . . . . . . . 1 . . 3 Programmers 3 | . . . . . . . . . . . 3 . . Fabnet Peak Effective % . | . . . . . . . . . . . . . . Robots Rewired 7 | . . . . . 7 . . . . . . . . Allies Hacked . | . . . . . . . . . . . . . . Hacks Repelled . | . . . . . . . . . . . . . . Allies | -11 -10 -10 -8 -8 -8 -6 -6 -6 -6 -6 -5 -5 -5 -------- Run | Yrd Mat Sub Mat Sto Rec Fac Ext Cet Arc Hub Fac Was Fac Total Allies 24 | . . . . 2 7 . 7 5 . 3 . . . Largest Group 9 | . . . . 2 9 9 3 6 5 6 . . . Highest-Rated Group 639 | . . . . 62 185 185 209 639 475 379 . . . Highest-Rated Ally 159 | . . . . 31 31 31 159 159 96 96 . . . Total Orders 2 | . . . . . 2 . . . . . . . . STAY 1 | . . . . . 1 . . . . . . . . FOLLOW 1 | . . . . . 1 . . . . . . . . Ally Attacks 198 | . . . . 11 20 24 28 47 22 46 . . . Total Damage 6181 | . . . . 166 355 486 876 1764 778 1756 . . . Kills 43 | . . . . 2 10 2 6 8 3 12 . . . Allies Corrupted 1 | . . . . . . . . . . 1 . . . Allies Melted . | . . . . . . . . . . . . . . Intel | -11 -10 -10 -8 -8 -8 -6 -6 -6 -6 -6 -5 -5 -5 ------- Run | Yrd Mat Sub Mat Sto Rec Fac Ext Cet Arc Hub Fac Was Fac Robot Analysis Total 10 | . 2 . 5 . 1 1 . . . 1 . . . Derelict Logs Recovered 2 | . . 2 . . . . . . . . . . . Drone Launches . | . . . . . . . . . . . . . . Drone Recoveries . | . . . . . . . . . . . . . . Exploration | -11 -10 -10 -8 -8 -8 -6 -6 -6 -6 -6 -5 -5 -5 ------------- Run | Yrd Mat Sub Mat Sto Rec Fac Ext Cet Arc Hub Fac Was Fac Turns Passed 30880 | 20 1283 6427 2478 1746 907 8945 977 599 319 1635 3613 584 1347 Spaces Moved 14055 | 10 697 2707 1122 727 542 4545 562 267 130 639 1447 169 491 Core . | . . . . . . . . . . . . . . Treads 11514 | . 620 2707 1122 727 542 3747 145 208 130 346 687 169 364 Legs 213 | 10 77 . . . . . . . . . 126 . . Wheels 485 | . . . . . . . 417 59 . 9 . . . Hover 1003 | . . . . . . 174 . . . 284 519 . 26 Flight 840 | . . . . . . 624 . . . . 115 . 101 Fastest Speed 94 | 120 120 160 153 153 153 94 115 145 171 120 132 220 231 Average Speed 178 | 120 156 226 157 153 153 158 136 165 171 204 182 226 231 Slowest Speed 320 | 120 190 240 160 153 153 320 172 171 171 265 282 231 231 Overloaded Moves . | . . . . . . . . . . . . . . Propulsion Burnouts . | . . . . . . . . . . . . . . Robots Hopped 2 | . . . . . . . . . . . . . 2 Cave-ins Triggered . | . . . . . . . . . . . . . . Exploration Rate (%) 71 | 2 94 97 81 90 98 85 82 89 94 51 40 83 13 Regions Visited 13 Branch Regions 7 Pre-discovered Areas 6 | . 1 1 . 1 3 . . . . . . . . Known Exits Taken 11 | 1 1 1 1 1 1 1 1 1 1 1 . . . Unknown Exits Taken . | . . . . . . . . . . . . . . Scrap Searched 7 | . . 7 . . . . . . . . . . . Spaces Dug 68 | . . 59 . . . 1 . . . 2 2 . 4 Terrain Destroyed 729 | . 20 193 21 17 . 229 12 79 . 72 71 1 14 Melee . | . . . . . . . . . . . . . . Projectile 116 | . . . 11 2 . 37 12 1 . 14 24 1 14 AOE 613 | . 20 193 10 15 . 192 . 78 . 58 47 . . Terrain Rammed . | . . . . . . . . . . . . . . Walls Destroyed . | . . . . . . . . . . . . . . Machines Disabled . | . . . . . . . . . . . . . . Actions | -11 -10 -10 -8 -8 -8 -6 -6 -6 -6 -6 -5 -5 -5 --------- Run | Yrd Mat Sub Mat Sto Rec Fac Ext Cet Arc Hub Fac Was Fac Total 18178 | 13 842 2888 1611 1176 620 5838 670 403 216 796 2235 251 619 Wait 2853 | . 89 77 289 328 44 986 31 114 65 72 670 10 78 Move 14039 | 9 696 2706 1121 726 541 4544 561 266 129 638 1447 168 487 Hop 2 | . . . . . . . . . . . . . 2 Pick Up 88 | 1 15 7 23 7 1 21 . 2 1 2 6 1 1 Fast Attach 54 | . 3 1 4 7 . 14 1 2 5 . 9 6 2 Attach 49 | . 1 5 14 . . 12 1 . 1 6 5 1 3 Detach 42 | . 2 2 4 1 . 17 . 3 . 2 7 1 3 Swap 45 | 1 3 2 17 7 1 10 . 2 . 1 1 . . Drop 109 | . 10 7 28 13 2 30 . 3 7 . 5 4 . Fire 819 | 2 23 80 105 85 . 201 46 11 8 75 82 60 41 Melee . | . . . . . . . . . . . . . . Ram 4 | . . . . . . . . . . . 2 . 2 Kick . | . . . . . . . . . . . . . . Crush 11 | . . . 5 2 . 3 . . . . 1 . . Escape Stasis 30 | . . . . . . . 30 . . . . . . Rewire 31 | . . . . . 31 . . . . . . . . Trap 2 | . . 1 1 . . . . . . . . . . Miscellaneous . | . . . . . . . . . . . . . . Route ------- -11/Scrapyard -10/Materials (discovered 4 exits: *Mat x2 / *Min / *Sub) -10/Subcaves (discovered 2 exits: *Mat x2) -8/Materials (discovered 4 exits: *Fac x2 / *Sto x2) -8/Storage (discovered 2 exits: *Fac / *Rec) -8/Recycling -6/Factory (discovered 5 exits: *Fac x2 / *Low / *Ext x2) -6/Extension (discovered 3 exits: *Fac x2 / *Cet) -6/Cetus (discovered 2 exits: *Fac / *Arc) -6/Archives (discovered 3 exits: *Fac / *Hub x2) -6/Hub_04(d) (discovered 3 exits: *Fac x3) -5/Factory (discovered 4 exits: *Fac x2 / Upp x2) -5/Waste -5/Factory History --------- Turn | Location | Event 9 | -11/Scrapyard | Identified exit to Materials 9 | -11/Scrapyard | Discovered exit to Materials (range 2) 21 | -11/Scrapyard | Entered Materials 21 | -10/Materials | Evolved 1 slot: Weapon x1 316 | -10/Materials | Repaired Corrupted Lgt. Treads 373 | -10/Materials | Identified exit to Materials 373 | -10/Materials | Discovered exit to Materials (range 7) 423 | -10/Materials | Build established: Hacker-Tank 874 | -10/Materials | Discovered exit to Materials (range 10) 945 | -10/Materials | Identified exit to Mines 945 | -10/Materials | Discovered exit to Mines (range 14) 1295 | -10/Materials | Identified exit to Subcaves 1295 | -10/Materials | Discovered exit to Subcaves (range 6) 1304 | -10/Materials | Entered Subcaves 1380 | -10/Subcaves | Visited Clippyterm 1718 | -10/Subcaves | Learned location of Zion (-7) 1718 | -10/Subcaves | Met a Zionite searching for "candidates" 1718 | -10/Subcaves | Learned 8 Materials zone layouts 1823 | -10/Subcaves | Ambushed by Subdwellers from Twisted Machinery 1847 | -10/Subcaves | Shifting Twisted Machinery released Sub. Power Source 2144 | -10/Subcaves | Identified exit to Materials 2144 | -10/Subcaves | Discovered exit to Materials (range 14) 2923 | -10/Subcaves | Shifting Twisted Machinery released Battle Rifle 2957 | -10/Subcaves | Shifting Twisted Machinery released Barrage Gun 3031 | -10/Subcaves | Disturbed a concealed Subdweller 3365 | -10/Subcaves | A swath of the cavern ceiling suddenly collapsed 3962 | -10/Subcaves | A swath of the cavern ceiling suddenly collapsed 4103 | -10/Subcaves | Discovered exit to Materials (range 11) 4119 | -10/Subcaves | Shifting Twisted Machinery released Shrapnel Trap 4119 | -10/Subcaves | Shifting Twisted Machinery released Sub. Beam Cannon 5727 | -10/Subcaves | Learned Materials emergency access door positions 6969 | -10/Subcaves | Ambushed by Subdweller buried in earth 7731 | -10/Subcaves | Entered Materials 7731 | -8/Materials | Evolved 4 slots: Propulsion x1, Utility x3 7732 | -8/Materials | Identified exit to Storage 7732 | -8/Materials | Identified exit to Factory 7798 | -8/Materials | Garrison activated, responded to threat 7827 | -8/Materials | Lost 3 parts (1u2w) 8039 | -8/Materials | Build established: Scavenger-Gunner 8042 | -8/Materials | Discovered exit to Storage (range 17) 8582 | -8/Materials | Repaired Lgt. Nuclear Core 9260 | -8/Materials | Build established: Scavenger-Tank 9423 | -8/Materials | Discovered exit to Factory (range 5) 10209 | -8/Materials | Entered Storage 10904 | -8/Storage | Garrison activated, responded to threat 11060 | -8/Storage | Garrison activated, responded to threat 11332 | -8/Storage | Repaired Adv. Treads 11353 | -8/Storage | Repaired Adv. Treads 11442 | -8/Storage | Identified exit to Recycling 11442 | -8/Storage | Discovered exit to Recycling (range 18) 11514 | -8/Storage | Met a pair of Derelict thieves 11617 | -8/Storage | Discovered exit to Factory (range 20) 11676 | -8/Storage | Build established: Hacker-Tank 11787 | -8/Storage | Repaired Arm. Treads 11944 | -8/Storage | Used back door to open Recycling access 11955 | -8/Storage | Entered Recycling 11955 | -8/Recycling | Accompanied by 2 allies 11956 | -8/Recycling | Joined Warlord attack on 0b10 via Recycling 11976 | -8/Recycling | Found Scrap Engine 12491 | -8/Recycling | Build established: Commander-Tank 12841 | -8/Recycling | Identified exit to Factory 12841 | -8/Recycling | Discovered exit to Factory (range 7) 12862 | -8/Recycling | Entered Factory 12862 | -6/Factory | Accompanied by 9 allies 12862 | -6/Factory | Evolved 4 slots: Propulsion x1, Utility x2, Weapon x1 12884 | -6/Factory | Identified exit to DSF 13212 | -6/Factory | Search patrols dispatched 13288 | -6/Factory | Lost 3 allies 13582 | -6/Factory | Lost 5 allies 13841 | -6/Factory | Build established: Hacker-Tank 14090 | -6/Factory | Cargo convoy interrupted 14991 | -6/Factory | Build established: Hacker-Gunner 15103 | -6/Factory | Identified exit to Extension 15103 | -6/Factory | Discovered exit to Extension (range 6) 15769 | -6/Factory | Identified exit to Factory 15769 | -6/Factory | Discovered exit to Factory (range 6) 16043 | -6/Factory | Fabricated Hcp. Storage Unit? 16145 | -6/Factory | Fabricated Adv. Treads? 17602 | -6/Factory | Garrison activated, responded to threat 17922 | -6/Factory | Discovered exit to Factory (range 8) 18187 | -6/Factory | Spotted B-75 Beast 18300 | -6/Factory | Destroyed B-75 Beast 19118 | -6/Factory | Fabricated Lgt. Angular Momentum Engine? 19182 | -6/Factory | Fabricated Lgt. Angular Momentum Engine (x2) 19424 | -6/Factory | Fabricated Adv. Treads (x2) 19585 | -6/Factory | Repaired Lyr. Medium Armor Plating 20231 | -6/Factory | Repaired Com. Ion Cannon 20257 | -6/Factory | Repaired Lyr. Medium Armor Plating 20435 | -6/Factory | Fabricated Adv. Treads (x2) 20585 | -6/Factory | Discovered exit to Extension (range 6) 20950 | -6/Factory | Fabricated Adv. Treads (x2) 21321 | -6/Factory | Fabricated Adv. Treads (x2) 21514 | -6/Factory | Identified exit to Lower Caves 21514 | -6/Factory | Discovered exit to Lower Caves (range 8) 21807 | -6/Factory | Entered Extension 21868 | -6/Extension | Rescued a captive Derelict 22132 | -6/Extension | Spotted B-75 Beast 22164 | -6/Extension | Rescued a captive Derelict 22164 | -6/Extension | Rescued a captive Derelict 22181 | -6/Extension | Rescued a captive Derelict 22202 | -6/Extension | Spotted B-75 Beast 22231 | -6/Extension | Destroyed B-75 Beast 22251 | -6/Extension | Destroyed B-75 Beast 22259 | -6/Extension | Lost 3 allies 22318 | -6/Extension | Discovered exit to Factory (range 3) 22382 | -6/Extension | Disrupted transfer network 22390 | -6/Extension | Rescued A7 22507 | -6/Extension | First assault squad dispatched 22721 | -6/Extension | Rescued a captive Derelict 22722 | -6/Extension | Rescued a captive Derelict 22754 | -6/Extension | Discovered exit to Factory (range 10) 22755 | -6/Extension | Identified exit to Cetus 22755 | -6/Extension | Discovered exit to Cetus (range 6) 22784 | -6/Extension | Entered Cetus 22784 | -6/Cetus | Accompanied by 3 allies (A7) 22789 | -6/Cetus | Acquired a Cetus Manufacturing Module code from A7 22801 | -6/Cetus | Spotted Cetus Guard 22801 | -6/Cetus | Spotted Cetus Guard 22803 | -6/Cetus | Spotted Cetus Guard 22810 | -6/Cetus | Allies destroyed Cetus Guard 22810 | -6/Cetus | Spotted Cetus Guard 22821 | -6/Cetus | Destroyed Cetus Guard 22823 | -6/Cetus | Allies destroyed Cetus Guard 22829 | -6/Cetus | Destroyed Cetus Guard 22913 | -6/Cetus | Escorted A7 to Cetus Mainframe 23069 | -6/Cetus | Started Cetus Manufacturing Module 23094 | -6/Cetus | Manufactured an Enhanced Grunt 23119 | -6/Cetus | Manufactured an Enhanced Grunt 23144 | -6/Cetus | Manufactured an Enhanced Grunt 23169 | -6/Cetus | Manufactured an Enhanced Grunt 23194 | -6/Cetus | Manufactured an Enhanced Grunt 23222 | -6/Cetus | Identified exit to Archives 23222 | -6/Cetus | Discovered exit to Archives (range 22) 23259 | -6/Cetus | Spotted Cetus Guard 23259 | -6/Cetus | Spotted Cetus Guard 23263 | -6/Cetus | Spotted Cetus Guard 23263 | -6/Cetus | Spotted Cetus Guard 23266 | -6/Cetus | Discovered exit to Factory (range 22) 23267 | -6/Cetus | Allies destroyed Cetus Guard 23273 | -6/Cetus | Extracted ID and sensor layout for unrecognized location from A7's data core 23278 | -6/Cetus | Allies destroyed Cetus Guard 23278 | -6/Cetus | Destroyed Cetus Guard 23283 | -6/Cetus | Allies destroyed Cetus Guard 23294 | -6/Cetus | Met Revision 17 23383 | -6/Cetus | Entered Archives 23383 | -6/Archives | Accompanied by 5 allies 23468 | -6/Archives | Identified exit to Hub_04(d) 23468 | -6/Archives | Discovered exit to Hub_04(d) (range 22) 23494 | -6/Archives | Discovered exit to Hub_04(d) (range 22) 23504 | -6/Archives | Unable to access archive contents 23513 | -6/Archives | Discovered exit to Factory (range 22) 23702 | -6/Archives | Entered Hub_04(d) 23702 | -6/Hub_04(d) | Accompanied by 4 allies 23779 | -6/Hub_04(d) | Discovered exit to Factory (range 17) 23806 | -6/Hub_04(d) | Build established: Hacker-Construct 23995 | -6/Hub_04(d) | Discovered exit to Factory (range 22) 24303 | -6/Hub_04(d) | Discovered exit to Factory (range 8) 24413 | -6/Hub_04(d) | Allied Derelicts emerged from ambush trap array 24424 | -6/Hub_04(d) | Network Hub disabled 24425 | -6/Hub_04(d) | Spotted Lightning 24426 | -6/Hub_04(d) | Spotted Lightning 24428 | -6/Hub_04(d) | Spotted Lightning 24428 | -6/Hub_04(d) | Spotted Lightning 24428 | -6/Hub_04(d) | Spotted Lightning 24428 | -6/Hub_04(d) | Spotted Lightning 24431 | -6/Hub_04(d) | Core integrity fell below 50% 24441 | -6/Hub_04(d) | System corruption reached 10% 24456 | -6/Hub_04(d) | Lost 6 allies 24467 | -6/Hub_04(d) | Destroyed Lightning 24470 | -6/Hub_04(d) | Destroyed Lightning 24470 | -6/Hub_04(d) | Destroyed Lightning 24481 | -6/Hub_04(d) | Destroyed Lightning 24484 | -6/Hub_04(d) | Destroyed Lightning 24494 | -6/Hub_04(d) | Destroyed Lightning 24505 | -6/Hub_04(d) | Lost 4 parts (1p1n2w) 24513 | -6/Hub_04(d) | Found Prototype Processor 24540 | -6/Hub_04(d) | Destroyed 10 combat bots 24547 | -6/Hub_04(d) | Spotted Lightning 24547 | -6/Hub_04(d) | Spotted Lightning 24548 | -6/Hub_04(d) | Spotted Lightning 24588 | -6/Hub_04(d) | Destroyed Lightning 24615 | -6/Hub_04(d) | Destroyed Lightning 24648 | -6/Hub_04(d) | Destroyed Lightning 24770 | -6/Hub_04(d) | Build established: Hacker-Gunner 25166 | -6/Hub_04(d) | Build established: Hacker-Construct 25236 | -6/Hub_04(d) | Network Hub disabled 25244 | -6/Hub_04(d) | Network Hub disabled 25285 | -6/Hub_04(d) | Network Hub disabled 25337 | -6/Hub_04(d) | Entered Factory 25337 | -5/Factory | Evolved 2 slots: Power x1, Utility x1 25385 | -5/Factory | Identified exit to DSF 25651 | -5/Factory | Build established: Hacker-Gunner 25959 | -5/Factory | Build established: Hacker-Construct 25980 | -5/Factory | Identified exit to Upper Caves 26495 | -5/Factory | Identified Exp. Targeting Computer 26956 | -5/Factory | Repaired Centrium Medium Armor Plating 27009 | -5/Factory | Repaired System Restoration Module 27111 | -5/Factory | Repaired Broken Cld. Plasma Cannon 27553 | -5/Factory | Identified exit to Factory 27553 | -5/Factory | Discovered exit to Factory (range 16) 27667 | -5/Factory | Fabricated Hvy. Treads (x2) 28188 | -5/Factory | Fabricated Hvy. Treads (x2) 28245 | -5/Factory | Fabricated Hcp. Storage Unit (x1) 28769 | -5/Factory | Discovered exit to Factory (range 7) 28950 | -5/Factory | Sucked down chute 28950 | -5/Factory | Entered Waste 28965 | -5/Waste | EMP discharged 28970 | -5/Waste | Spotted C-40 Crusher 28976 | -5/Waste | Spotted C-40 Crusher 28982 | -5/Waste | Spotted C-40 Crusher 28983 | -5/Waste | Destroyed C-40 Crusher 28991 | -5/Waste | Destroyed C-40 Crusher 29022 | -5/Waste | Crushed by Compactor (1 part destroyed, 1 dropped) 29025 | -5/Waste | Crushed by Compactor (1 part destroyed) 29028 | -5/Waste | Crushed by Compactor (1 part destroyed) 29031 | -5/Waste | Crushed by Compactor (1 part destroyed) 29037 | -5/Waste | Crushed by Compactor (0 parts destroyed, 1 dropped) 29052 | -5/Waste | Crushed by Compactor (1 part destroyed) 29065 | -5/Waste | EMP discharged 29065 | -5/Waste | System corruption reached 10% 29073 | -5/Waste | Destroyed C-40 Crusher 29083 | -5/Waste | Lost 5 parts (2u3w) 29094 | -5/Waste | Found Damper Plating 29134 | -5/Waste | Spotted C-40 Crusher 29145 | -5/Waste | Spotted C-40 Crusher 29145 | -5/Waste | Destroyed C-40 Crusher 29156 | -5/Waste | Destroyed C-40 Crusher 29165 | -5/Waste | EMP discharged 29182 | -5/Waste | Found Damper Plating 29215 | -5/Waste | Spotted C-40 Crusher 29265 | -5/Waste | EMP discharged 29365 | -5/Waste | EMP discharged 29371 | -5/Waste | Destroyed C-40 Crusher 29382 | -5/Waste | Found Damper Plating 29465 | -5/Waste | EMP discharged 29502 | -5/Waste | Identified exit to Factory 29502 | -5/Waste | Discovered exit to Factory (range 13) 29534 | -5/Waste | Entered Factory 30497 | -5/Factory | Garrison activated, responded to threat 30803 | -5/Factory | Core integrity fell below 50% 30881 | -5/Factory | Self-destructed Last Messages --------------- 30851_ System corrupted: Accelerated Phase Construct/C failed to cycle. 30851_ Slug penetrates B-60 Warrior. 30856_ Activated siege mode. 30859_ Hcp. Matter Pod destroyed. 30859_ System corrupted by crushing effect (+3). 30860_ Slug penetrates B-60 Warrior. 30860_ B-60 Warrior destroyed. 30860_ Slug penetrates Wall. 30870_ Slug penetrates G-50 Soldier. 30870_ G-50 Soldier knocked back. 30873_ Critical hit (Burn: +37). 30875_ R-10 Processor collects Imp. Treads. 30877_ Accelerated Phase Construct/C destroyed. 30877_ Arm. Scrap Engine damaged due to network destabilization (-6). 30879_ Destroyed Lgt. Angular Momentum Engine. 30880_ R-10 Processor collects Hvy. Mace. 30881_ System corrupted: Energy discharge (-7). 30881_ Imp. Medium Armor Plating destroyed. Map ----- +----------------------------------------------------+ | ?????????????????????????????????????????????????? | | ?????????????????????????????????????????????????? | | ?????????????????????????????????????????????????? | | ?????????????????????????????????????????????????? | | ?????????????????????????????????????????????????? | | ?????????????????????????????????????????????????? | | ?????????????????????????????????????????????????? | | ?????????????????????????????????????????????????? | | ?????????????????????????????????????????????????? | | ?????????????????????????????????????????????????? | | ?????????????????????????????????????????????????? | | ?????????????????????????????????????????????????? | | ?????????????????????????????????????????????????? | | ?????????????????????????????????????????????????? | | ?????????????????????????#???????????????????????? | | ?????????????????????????#############???????????? | | ????????????????????????+ #???????????? | | ??????????????????? ????# #???????????? | | ??????????????????? ????# #???????????? | | ??????????????????? ????+ #???????????? | | ??????????????????? ????# """" """" #???????????? | | ??????????????????? ????# """" """" #???????????? | | ??????????????????? ????+ """" """" #??????###### | | ??????????????????? ????# """" """" #########% | | ???????# # # #???#R"""" """" + + | | ???????# # + #???#@"""" """" #########% % | | ???????# # """ # #???#* #???????# | | ???????# # """ # #???# g g #???????# | | ??????? + """ # #???##g####+#+####???????# | | ??????? # # #????# #??????????# | | ??????? ###+##+### #????# #??????????# | | ??????? #?# # ## ###### #??????????# | | ?????###+### # #??????????# | | ?????? # # ###### #??????????# | | ??????? !! # ##????# #??????????# | | ??????? " # #?????# ################ | | ???????G"" # #?#####+##### | | ????######## #?# # | | ????# # #?# """"" # | | ????# # #?# ""T"" # | | ????# # % #?#= # | | ????# """ # ################+#############+### | | ????# """ + %%!%!%=% + # ??? # | | ????# """ # ########### # ??? # | | ????######## #????# # # ?? # | | ?????????### ###??# # """"" # # | | ???????### %" #??# # """"" # ! # | | ??????? " #### # """ # # | | ?????? + # % # # | | ???? #### # """"" # # | +----------------------------------------------------+ Best States ------------- Heat Dissipation 78 Energy Generation 35 Energy Capacity 815 Matter Stores 500 Matter Capacity 500 Sight Range 22 Terrain Scan Range 20 Terrain Scan Density 10 Additional Mass Support 16 Armor Coverage 1600 Resistance: KI 35 Resistance: TH 35 Resistance: EX 35 Resistance: EM 100 Resistance: I 35 Resistance: S 35 Resistance: P 35 Weapon Shielding 33 Evasion (%) 55 Targeting Accuracy 20 Recoil Reduction 4 Kinecelleration 40 Offensive Hacking 20 Item Schematics ----------------- Lgt. Armor Plating | -10/Materials | Hacked Lrg. Storage Unit | -10/Materials | Hacked Imp. Grenade Launcher | -8/Recycling | Hacked Arm. Treads | -8/Recycling | Hacked Adv. Treads | -6/Factory | Hacked Hcp. Storage Unit | -6/Factory | Hacked Lgt. Angular Momentum Engine | -6/Factory | Hacked Nuclear Pulse Thruster | -6/Factory | Hacked Matter Neutralizer | -6/Factory | Hacked Hvy. Treads | -5/Factory | Hacked Centrium Medium Armor Plating | -5/Factory | Scanalyzed Imp. Plasma Cutter | -5/Factory | Scanalyzed Robot Schematics ------------------ None Fabricated ------------ Hcp. Storage Unit | x1 | -6/Factory Adv. Treads | x2 | -6/Factory Lgt. Angular Momentum Engine | x2 | -6/Factory Lgt. Angular Momentum Engine | x2 | -6/Factory Adv. Treads | x2 | -6/Factory Adv. Treads | x2 | -6/Factory Adv. Treads | x2 | -6/Factory Adv. Treads | x2 | -6/Factory Hvy. Treads | x2 | -5/Factory Hvy. Treads | x2 | -5/Factory Hcp. Storage Unit | x1 | -5/Factory Alien Tech Used ----------------- None Achievements -------------- 404 Overkill Prison Break Project G-00 Revising The Future Superinsulated Treasure Hunter Challenges ------------ None Game ------ Seed ResetPlasmaGun Manual? 0 Play Time 05:45:22 Cumulative 71.4 hours Start 2024.05.15 @ 10:25:26 End 2024.05.15 @ 20:05:06 Sessions 5 Manual Loads 0 Difficulty Explorer Special Mode None Game No. 49 Rogue 48 Adventurer 0 Explorer 1 Win Type - Total 1 Types 1/0/0/0/0/0/0/0/0 Lore% 37 Gallery% 36 Achievement% 37 Wizard Run 0 Options --------- Layout 1 ASCII 0 Keyboard 1 Movement Numpad Keybinds 1 Fullscreen 1 Font 24/Smallcaps Map View 50x35 Zoom Use 0% Tactical HUD 1 Map Filters NONE Filters NONE Steam 1 RUN: 5bac1f1b-a863-4780-aeab-232811621568